Workbook

Sheet BYA PAL Calc - Biweekly
A1: Biweekly Position - Time Based Pay
A2: If you have an hourly rate plug it here. | B2: Cumulitive hours spent in the last four pay periods devided by 4. | H2: Hours Taken: For Calculation purposes, enter number of hours to claim to not exceed remaining balance. KEEP TRACK of Submissions | I2: Amount To Submit: Use this amount to submit a One-Time pay using "RGC" earn code
A3: Hourly Rate | B3: AVG Hours Spent Per PP based on Previous Periods | C3: Job FTE or FTE Per PP Based on AVG Hours | D3: Admin Leave Max | E3: Admin Leave Max Based on FTE | F3: Previous Admin Leave Takes | G3: Remaining Admin Leave Balance | H3: Current Pay Period Takes not to Exceed Remaining Balance | I3: One Time Pay
A4: Example 1
A5: $23.00 | B5: 12.5 | C5: =B5/80 -> 0.156 | D5: 128 | E5: =C5*D5 -> 20.0 | F5: 0.0 | G5: =E5-F5 -> 20.0 | H5: 10.0 | I5: =A5*H5 -> $230.00
A6: Example 2
A7: $32.00 | B7: 20.0 | C7: =B7/80 -> 0.250 | D7: 128 | E7: =C7*D7 -> 32.0 | F7: 0.0 | G7: =E7-F7 -> 32.0 | H7: 40.0 | I7: =A7*H7 -> $1,280.00
A10: Biweekly Position - Flat Dollar Amount Based Pay (Pay is the same every pay period regardless of hours spent)
A11: Example 1
A12: Pay Rate per PP | B12: $500.00 | C12: This amount is paid to employee on a monthly basis regardless of time spent
A13: Hours Per PP | B13: 80 | C13: Biweekly Hours
A14: Pay Rate | B14: =B12/B13 -> $6.25 | C14: Calculated Hourly rate
A15: $6.25 | B15: 80 | C15: =B15/80 -> 1.000 | D15: 128 | E15: =C15*D15 -> 128.0 | F15: 0.0 | G15: =E15-F15 -> 128.0 | H15: 80.0 | I15: =A15*H15 -> $500.00
A16: Example 2
A17: Pay Rate per PP | B17: $3,500.00 | C17: This amount is paid to employee every pay period regardless of time spent
A18: Hours Per PP | B18: 80 | C18: Biweekly Hours
A19: Pay Rate | B19: =B17/B18 -> $43.75 | C19: Calculated Hourly rate
A20: $43.75 | B20: 80 | C20: =B20/80 -> 1.000 | D20: 128 | E20: =C20*D20 -> 128.0 | F20: 0.0 | G20: =E20-F20 -> 128.0 | H20: 80.0 | I20: =A20*H20 -> $3,500.00

Sheet BYA PAL Calc - Monthly
A1: Monthly Position - Time Based Pay
A2: If you have an hourly rate plug it here. | B2: Cumulitive hours spent in the last two pay periods devided by 2. Ex: 50 Total Hours Avg = 25 | H2: Hours Taken: For Calculation purposes, enter number of hours to claim to not exceed remaining balance. KEEP TRACK of Submissions | I2: Amount To Submit: Use this amount to submit a One-Time pay using "RGC" earn code
A3: Hourly Rate | B3: AVG Hours Spent Per PP based on Previous Periods | C3: Job FTE or FTE Per PP Based on AVG Monthly Hours | D3: Admin Leave Max | E3: Admin Leave Max Based on FTE | F3: Previous Admin Leave Takes | G3: Remaining Admin Leave Balance | H3: Current Pay Period Takes not to Exceed Remaining Balance | I3: One Time Pay
A4: Example 1
A5: $38.00 | B5: 25.0 | C5: =B5/174 -> 0.144 | D5: 128 | E5: =C5*D5 -> 18.4 | F5: 0.0 | G5: =E5-F5 -> 18.4 | H5: 10.0 | I5: =A5*H5 -> $380.00
A6: Example 2
A7: $55.00 | B7: 20.0 | C7: =B7/174 -> 0.115 | D7: 128 | E7: =C7*D7 -> 14.7 | F7: 0.0 | G7: =E7-F7 -> 14.7 | H7: 20.0 | I7: =A7*H7 -> $1,100.00
A10: Monthly Position - Flat Dollar Amount Based Pay (Pay is the same every pay period regardless of hours spent)
A11: Example 1
A12: Pay Rate per PP | B12: $500.00 | C12: This amount is paid to employee on a monthly basis regardless of time spent
A13: Hours Per PP | B13: 174 | C13: Average Monthly Hours
A14: Pay Rate | B14: =B12/B13 -> $2.87 | C14: Calculated Hourly rate
A15: =B14 -> $2.87 | B15: 174 | C15: =B15/B15 -> 1.000 | D15: 128 | E15: =C15*D15 -> 128.0 | F15: 0.0 | G15: =E15-F15 -> 128.0 | H15: 80.0 | I15: =A15*H15 -> $229.89
A16: Example 2
A17: Pay Rate per PP | B17: $3,500.00 | C17: This amount is paid to employee on a monthly basis regardless of time spent
A18: Hours Per PP | B18: 174 | C18: Average Monthly Hours
A19: Pay Rate | B19: =B17/B18 -> $20.11 | C19: Calculated Hourly rate
A20: =B19 -> $20.11 | B20: 174 | C20: =B20/B20 -> 1.000 | D20: 128 | E20: =C20*D20 -> 128.0 | F20: 0.0 | G20: =E20-F20 -> 128.0 | H20: 80.0 | I20: =A20*H20 -> $1,609.20
